[Event "Early-Titled-Tuesday-Blitz-May-07-2024"]
[Site "Chess.com"]
[Date "2024.05.07"]
[Round "4"]
[White "Msb2"]
[Black "Dedic8"]
[Result "0-1"]
[WhiteElo "3030"]
[BlackElo "2866"]
[TimeControl "180+1"]
[EndTime "8:43:18 PDT"]
[Termination "Dedic8 won by checkmate"]

1. d4 {[%clk 0:03:00.9]} 1... Nf6 {[%clk 0:02:59.7]} 2. c4 {[%clk 0:03:01.5]}
2... e6 {[%clk 0:03:00.2]} 3. Nc3 {[%clk 0:03:02.2]} 3... d5 {[%clk 0:03:00.5]}
4. cxd5 {[%clk 0:03:03.1]} 4... exd5 {[%clk 0:03:01.4]} 5. Bg5 {[%clk
0:03:03.3]} 5... Be7 {[%clk 0:03:01.6]} 6. e3 {[%clk 0:03:04]} 6... h6 {[%clk
0:03:01.7]} 7. Bf4 {[%clk 0:03:03.4]} 7... O-O {[%clk 0:03:00.8]} 8. Bd3 {[%clk
0:03:03.5]} 8... c5 {[%clk 0:02:57.1]} 9. Nf3 {[%clk 0:03:03.5]} 9... Nc6 {[%clk
0:02:56.4]} 10. O-O {[%clk 0:03:04.1]} 10... cxd4 {[%clk 0:02:55.4]} 11. Nxd4
{[%clk 0:03:05]} 11... Nxd4 {[%clk 0:02:55.3]} 12. exd4 {[%clk 0:03:05.9]} 12...
Be6 {[%clk 0:02:53.2]} 13. Rc1 {[%clk 0:02:59.3]} 13... Rc8 {[%clk 0:02:45.2]}
14. Re1 {[%clk 0:02:57.5]} 14... Qb6 {[%clk 0:02:41.8]} 15. Qb3 {[%clk
0:02:29.3]} 15... Qxd4 {[%clk 0:02:30.7]} 16. Ne2 {[%clk 0:02:17.1]} 16... Qb4
{[%clk 0:02:28]} 17. Qxb4 {[%clk 0:02:09.6]} 17... Bxb4 {[%clk 0:02:27.9]} 18.
Red1 {[%clk 0:02:10.3]} 18... Bc5 {[%clk 0:02:12.7]} 19. h3 {[%clk 0:02:03.1]}
19... Bb6 {[%clk 0:02:05.6]} 20. Be5 {[%clk 0:01:59.1]} 20... Rxc1 {[%clk
0:01:39.4]} 21. Rxc1 {[%clk 0:02:00]} 21... Ne4 {[%clk 0:01:27]} 22. Bd4 {[%clk
0:01:51.7]} 22... Bxd4 {[%clk 0:01:12.6]} 23. Nxd4 {[%clk 0:01:52.6]} 23... Rc8
{[%clk 0:01:12.9]} 24. Rxc8+ {[%clk 0:01:42.4]} 24... Bxc8 {[%clk 0:01:13.1]}
25. Nb5 {[%clk 0:01:43.1]} 25... a5 {[%clk 0:01:12.8]} 26. Bxe4 {[%clk
0:01:28.3]} 26... dxe4 {[%clk 0:01:13]} 27. Nd6 {[%clk 0:01:29]} 27... Be6
{[%clk 0:01:13.5]} 28. a3 {[%clk 0:01:22.9]} 28... Bd5 {[%clk 0:01:08.7]} 29.
Kf1 {[%clk 0:01:08.4]} 29... Kf8 {[%clk 0:01:09]} 30. Ke2 {[%clk 0:00:51.1]}
30... Ke7 {[%clk 0:01:07.9]} 31. Nf5+ {[%clk 0:00:51.3]} 31... Kf6 {[%clk
0:01:08.6]} 32. g4 {[%clk 0:00:51.9]} 32... h5 {[%clk 0:00:59.4]} 33. Ke3 {[%clk
0:00:43.3]} 33... g6 {[%clk 0:00:55.6]} 34. Nd6 {[%clk 0:00:16.7]} 34... hxg4
{[%clk 0:00:55.4]} 35. hxg4 {[%clk 0:00:17.6]} 35... Ke5 {[%clk 0:00:36.7]} 36.
Nb5 {[%clk 0:00:17.5]} 36... f5 {[%clk 0:00:36.3]} 37. gxf5 {[%clk 0:00:18.4]}
37... gxf5 {[%clk 0:00:37.1]} 38. Nc3 {[%clk 0:00:17.9]} 38... f4+ {[%clk
0:00:37.3]} 39. Kd2 {[%clk 0:00:18.6]} 39... Bc4 {[%clk 0:00:36.2]} 40. Na4
{[%clk 0:00:11.7]} 40... Kd4 {[%clk 0:00:36.3]} 41. Nc3 {[%clk 0:00:12.2]} 41...
e3+ {[%clk 0:00:28.5]} 42. fxe3+ {[%clk 0:00:13.1]} 42... fxe3+ {[%clk
0:00:29.4]} 43. Kc2 {[%clk 0:00:12.7]} 43... b5 {[%clk 0:00:25.1]} 44. Kd1
{[%clk 0:00:03.5]} 44... Kd3 {[%clk 0:00:24]} 45. Ke1 {[%clk 0:00:01.7]} 45...
Kc2 {[%clk 0:00:22.1]} 46. a4 {[%clk 0:00:02.4]} 46... b4 {[%clk 0:00:21.7]} 47.
Ne4 {[%clk 0:00:02.2]} 47... Kxb2 {[%clk 0:00:19.6]} 48. Nd6 {[%clk 0:00:03.1]}
48... Kc3 {[%clk 0:00:18.8]} 49. Nb7 {[%clk 0:00:01.7]} 49... b3 {[%clk
0:00:19.1]} 50. Nc5 {[%clk 0:00:01.8]} 50... b2 {[%clk 0:00:18.7]} 51. Ne4+
{[%clk 0:00:02.7]} 51... Kd4 {[%clk 0:00:18.9]} 52. Nd2 {[%clk 0:00:03]} 52...
exd2+ {[%clk 0:00:19]} 53. Kxd2 {[%clk 0:00:03.7]} 53... Bb3 {[%clk 0:00:18.3]}
54. Ke2 {[%clk 0:00:01.8]} 54... b1=Q {[%clk 0:00:18.5]} 55. Kf2 {[%clk
0:00:02.7]} 55... Qa2+ {[%clk 0:00:18.8]} 56. Kg3 {[%clk 0:00:03.4]} 56... Qxa4
{[%clk 0:00:19.5]} 57. Kh4 {[%clk 0:00:04.3]} 57... Ke5+ {[%clk 0:00:19.8]} 58.
Kg5 {[%clk 0:00:05.2]} 58... Qf4+ {[%clk 0:00:20]} 59. Kh5 {[%clk 0:00:05.3]}
59... Qg3 {[%clk 0:00:18.1]} 60. Kh6 {[%clk 0:00:05.5]} 60... Bc2 {[%clk
0:00:18.1]} 61. Kh5 {[%clk 0:00:05.7]} 61... Bf5 {[%clk 0:00:18.8]} 62. Kh6
{[%clk 0:00:06.6]} 62... Qg6# {[%clk 0:00:19.2]} 0-1

[Event "Early-Titled-Tuesday-Blitz-May-07-2024"]
[Site "Chess.com"]
[Date "2024.05.07"]
[Round "4"]
[White "ATM622"]
[Black "only_strong_moves"]
[Result "0-1"]
[WhiteElo "2499"]
[BlackElo "2712"]
[TimeControl "180+1"]
[EndTime "8:43:20 PDT"]
[Termination "only_strong_moves won by resignation"]

1. d4 {[%clk 0:03:00.9]} 1... Nf6 {[%clk 0:02:58.5]} 2. c4 {[%clk 0:03:00.2]}
2... e6 {[%clk 0:02:58.4]} 3. g3 {[%clk 0:03:00.2]} 3... d5 {[%clk 0:02:57]} 4.
Bg2 {[%clk 0:03:00.4]} 4... Be7 {[%clk 0:02:57.6]} 5. Nf3 {[%clk 0:03:00.6]}
5... O-O {[%clk 0:02:58.3]} 6. O-O {[%clk 0:03:01]} 6... dxc4 {[%clk 0:02:59]}
7. Ne5 {[%clk 0:03:01.1]} 7... Nc6 {[%clk 0:02:58.8]} 8. Bxc6 {[%clk 0:03:01.4]}
8... bxc6 {[%clk 0:02:59.7]} 9. Nxc6 {[%clk 0:03:02.3]} 9... Qe8 {[%clk
0:02:59.7]} 10. Nxe7+ {[%clk 0:03:03.2]} 10... Qxe7 {[%clk 0:03:00.6]} 11. Qc2
{[%clk 0:03:03.4]} 11... c5 {[%clk 0:02:58.2]} 12. b3 {[%clk 0:03:02.9]} 12...
cxd4 {[%clk 0:02:53.4]} 13. Ba3 {[%clk 0:02:59.9]} 13... Qd7 {[%clk 0:02:42.8]}
14. Bxf8 {[%clk 0:02:59.6]} 14... Kxf8 {[%clk 0:02:43.7]} 15. Qxc4 {[%clk
0:02:53.9]} 15... Bb7 {[%clk 0:02:42.7]} 16. Rd1 {[%clk 0:02:49.4]} 16... e5
{[%clk 0:02:43]} 17. Qc5+ {[%clk 0:02:26.7]} 17... Kg8 {[%clk 0:02:42.1]} 18. f3
{[%clk 0:02:26.4]} 18... Qh3 {[%clk 0:02:39.8]} 19. e4 {[%clk 0:01:57.3]} 19...
dxe3 {[%clk 0:02:15.6]} 20. Qxe3 {[%clk 0:01:55]} 20... h5 {[%clk 0:01:54.4]}
21. Rd2 {[%clk 0:01:37]} 21... h4 {[%clk 0:01:50.4]} 22. Nc3 {[%clk 0:01:30.7]}
22... Rc8 {[%clk 0:01:38.7]} 23. Ne4 {[%clk 0:01:17.8]} 23... Bxe4 {[%clk
0:01:04.1]} 24. fxe4 {[%clk 0:01:17.3]} 24... hxg3 {[%clk 0:01:04.3]} 25. Qxg3
{[%clk 0:01:08.4]} 25... Qh6 {[%clk 0:01:04]} 26. Re2 {[%clk 0:01:03.6]} 26...
Nh5 {[%clk 0:01:01.5]} 27. Qxe5 {[%clk 0:00:56.8]} 27... Nf4 {[%clk 0:00:56.8]}
28. Rae1 {[%clk 0:00:21.8]} 28... Rc1 {[%clk 0:00:40.9]} 29. Qe8+ {[%clk
0:00:03.5]} 29... Kh7 {[%clk 0:00:40.7]} 30. Rxc1 {[%clk 0:00:02.1]} 30... Nxe2+
{[%clk 0:00:41]} 31. Kf1 {[%clk 0:00:02.3]} 31... Nxc1 {[%clk 0:00:41.9]} 32.
Qxf7 {[%clk 0:00:02.4]} 32... Qa6+ {[%clk 0:00:33.3]} 33. Kg1 {[%clk 0:00:02.2]}
33... Qb6+ {[%clk 0:00:29.5]} 34. Kf1 {[%clk 0:00:02.1]} 34... Qf6+ {[%clk
0:00:18.7]} 35. Qxf6 {[%clk 0:00:02.2]} 35... gxf6 {[%clk 0:00:19.6]} 36. Ke1
{[%clk 0:00:01.3]} 36... Nxa2 {[%clk 0:00:20.1]} 37. Kd2 {[%clk 0:00:01.2]}
37... Kg6 {[%clk 0:00:20.1]} 38. Kd3 {[%clk 0:00:01.5]} 38... Kg5 {[%clk
0:00:19.6]} 39. Kd4 {[%clk 0:00:01.9]} 39... Kf4 {[%clk 0:00:19.8]} 40. Kd5
{[%clk 0:00:01.9]} 40... Nc3+ {[%clk 0:00:17.8]} 41. Ke6 {[%clk 0:00:01.3]}
41... Nxe4 {[%clk 0:00:17.8]} 42. h4 {[%clk 0:00:01.7]} 42... Kg4 {[%clk
0:00:17.4]} 43. h5 {[%clk 0:00:02.6]} 43... Kxh5 {[%clk 0:00:17.6]} 44. Kf5
{[%clk 0:00:03.5]} 44... Nc5 {[%clk 0:00:09.3]} 45. Kxf6 {[%clk 0:00:02.2]}
45... Nxb3 {[%clk 0:00:09.8]} 46. Ke5 {[%clk 0:00:02.7]} 46... a5 {[%clk
0:00:10.7]} 47. Kd5 {[%clk 0:00:02.9]} 47... a4 {[%clk 0:00:11.3]} 48. Kc4
{[%clk 0:00:03.3]} 48... Nc5 {[%clk 0:00:12]} 49. Kb4 {[%clk 0:00:03.5]} 49...
Kg4 {[%clk 0:00:11.2]} 50. Ka3 {[%clk 0:00:04.1]} 50... Kf4 {[%clk 0:00:11.7]}
51. Kb2 {[%clk 0:00:05]} 51... Ke3 {[%clk 0:00:12.1]} 52. Ka1 {[%clk 0:00:05.9]}
52... Kd4 {[%clk 0:00:12.7]} 53. Ka2 {[%clk 0:00:06.8]} 53... Kc4 {[%clk
0:00:13.3]} 54. Ka1 {[%clk 0:00:07.7]} 54... Kb3 {[%clk 0:00:13.3]} 55. Kb1
{[%clk 0:00:08]} 55... a3 {[%clk 0:00:13.6]} 56. Ka1 {[%clk 0:00:08.9]} 56...
Na4 {[%clk 0:00:13.4]} 57. Kb1 {[%clk 0:00:09.3]} 57... Nb6 {[%clk 0:00:13.5]}
58. Ka1 {[%clk 0:00:09.7]} 58... Nd5 {[%clk 0:00:14.2]} 59. Kb1 {[%clk
0:00:10.3]} 59... Nb4 {[%clk 0:00:14.8]} 60. Kc1 {[%clk 0:00:08.3]} 60... a2
{[%clk 0:00:14.6]} 0-1

[Event "Early-Titled-Tuesday-Blitz-May-07-2024"]
[Site "Chess.com"]
[Date "2024.05.07"]
[Round "4"]
[White "kritipatel"]
[Black "atomicmate123"]
[Result "1-0"]
[WhiteElo "2180"]
[BlackElo "2303"]
[TimeControl "180+1"]
[EndTime "8:43:20 PDT"]
[Termination "kritipatel won by resignation"]

1. d4 {[%clk 0:02:57.7]} 1... d5 {[%clk 0:02:58.3]} 2. Bf4 {[%clk 0:02:56]} 2...
c5 {[%clk 0:02:57.7]} 3. e3 {[%clk 0:02:55.1]} 3... Nc6 {[%clk 0:02:57.5]} 4. c3
{[%clk 0:02:52.4]} 4... Qb6 {[%clk 0:02:56.6]} 5. Qb3 {[%clk 0:02:42]} 5... c4
{[%clk 0:02:56.5]} 6. Qc2 {[%clk 0:02:41.1]} 6... Nf6 {[%clk 0:02:54.7]} 7. Nf3
{[%clk 0:02:34.2]} 7... Bf5 {[%clk 0:02:52.3]} 8. Qd2 {[%clk 0:02:26.9]} 8... e6
{[%clk 0:02:48.2]} 9. Be2 {[%clk 0:02:25.2]} 9... Be7 {[%clk 0:02:27.7]} 10. O-O
{[%clk 0:02:23.1]} 10... O-O {[%clk 0:02:28.1]} 11. Bg3 {[%clk 0:02:01.2]} 11...
Ne4 {[%clk 0:02:25.1]} 12. Qc1 {[%clk 0:01:57]} 12... Nxg3 {[%clk 0:02:17.2]}
13. hxg3 {[%clk 0:01:56.3]} 13... a5 {[%clk 0:02:05.8]} 14. Nbd2 {[%clk
0:01:55.1]} 14... a4 {[%clk 0:01:55.9]} 15. Nh4 {[%clk 0:01:42.7]} 15... Bxh4
{[%clk 0:01:53.7]} 16. gxh4 {[%clk 0:01:42.3]} 16... e5 {[%clk 0:01:43.3]} 17.
g4 {[%clk 0:01:35.7]} 17... Be6 {[%clk 0:01:38.8]} 18. f4 {[%clk 0:01:31.6]}
18... exd4 {[%clk 0:01:32]} 19. exd4 {[%clk 0:01:28.6]} 19... Qd8 {[%clk
0:01:13.1]} 20. f5 {[%clk 0:01:23.1]} 20... Bd7 {[%clk 0:01:10.2]} 21. g5 {[%clk
0:01:08.6]} 21... Qe7 {[%clk 0:01:07.6]} 22. Qe1 {[%clk 0:00:48]} 22... Rfe8
{[%clk 0:01:02.6]} 23. Rf2 {[%clk 0:00:38]} 23... Bxf5 {[%clk 0:00:56.1]} 24.
Qf1 {[%clk 0:00:24.7]} 24... Qe3 {[%clk 0:00:46]} 25. Nxc4 {[%clk 0:00:13.8]}
25... dxc4 {[%clk 0:00:44.1]} 26. Bxc4 {[%clk 0:00:14.4]} 26... Re7 {[%clk
0:00:29.3]} 27. Kh2 {[%clk 0:00:13.2]} 27... Bg6 {[%clk 0:00:25.1]} 28. Re2
{[%clk 0:00:09.5]} 28... Qxe2+ {[%clk 0:00:08.8]} 29. Bxe2 {[%clk 0:00:09.5]}
29... Rae8 {[%clk 0:00:08.5]} 30. Bf3 {[%clk 0:00:09.4]} 30... Re3 {[%clk
0:00:07.9]} 31. Bg2 {[%clk 0:00:08.3]} 31... Bd3 {[%clk 0:00:06.8]} 32. Qf4
{[%clk 0:00:07.8]} 32... Re2 {[%clk 0:00:04.1]} 33. Rf1 {[%clk 0:00:07.7]} 33...
Nd8 {[%clk 0:00:01.9]} 34. Rf3 {[%clk 0:00:07.2]} 34... Be4 {[%clk 0:00:02.3]}
35. Rg3 {[%clk 0:00:07.2]} 35... Bxg2 {[%clk 0:00:02.3]} 36. Rxg2 {[%clk
0:00:07.5]} 36... Re1 {[%clk 0:00:02.8]} 37. Kg3 {[%clk 0:00:07.2]} 37... R8e3+
{[%clk 0:00:02.3]} 38. Kh2 {[%clk 0:00:07]} 38... g6 {[%clk 0:00:03]} 39. Rf2
{[%clk 0:00:07.4]} 39... R3e2 {[%clk 0:00:03.5]} 40. Qf6 {[%clk 0:00:07.4]}
40... Rxf2+ {[%clk 0:00:03]} 41. Qxf2 {[%clk 0:00:08]} 41... Ne6 {[%clk
0:00:03.7]} 42. Qxe1 {[%clk 0:00:08]} 42... Nf4 {[%clk 0:00:03.8]} 43. Kg3
{[%clk 0:00:07.2]} 43... Nd3 {[%clk 0:00:03.4]} 44. Qe8+ {[%clk 0:00:07.6]}
44... Kg7 {[%clk 0:00:03.4]} 45. d5 {[%clk 0:00:08.3]} 45... Nxb2 {[%clk
0:00:02.7]} 46. d6 {[%clk 0:00:08.9]} 46... Nc4 {[%clk 0:00:02.7]} 47. d7 {[%clk
0:00:09.6]} 1-0

[Event "Early-Titled-Tuesday-Blitz-May-07-2024"]
[Site "Chess.com"]
[Date "2024.05.07"]
[Round "4"]
[White "tandaleo"]
[Black "JoliyRoger"]
[Result "1-0"]
[WhiteElo "2587"]
[BlackElo "2396"]
[TimeControl "180+1"]
[EndTime "8:43:22 PDT"]
[Termination "tandaleo won on time"]

1. e4 {[%clk 0:02:53.9]} 1... c6 {[%clk 0:03:00]} 2. d4 {[%clk 0:02:45.7]} 2...
d5 {[%clk 0:03:00.9]} 3. Nc3 {[%clk 0:02:46.4]} 3... dxe4 {[%clk 0:03:00.8]} 4.
Nxe4 {[%clk 0:02:47.3]} 4... Bf5 {[%clk 0:03:01.4]} 5. Ng5 {[%clk 0:02:46.1]}
5... e6 {[%clk 0:02:56.7]} 6. N1f3 {[%clk 0:02:45.2]} 6... Nd7 {[%clk
0:02:55.4]} 7. Bc4 {[%clk 0:02:39.5]} 7... h6 {[%clk 0:02:46.9]} 8. Nh3 {[%clk
0:01:58.3]} 8... Bxh3 {[%clk 0:02:46.2]} 9. gxh3 {[%clk 0:01:59.2]} 9... Ngf6
{[%clk 0:02:44.8]} 10. Rg1 {[%clk 0:01:57.3]} 10... Qa5+ {[%clk 0:02:36.9]} 11.
c3 {[%clk 0:01:53]} 11... Qh5 {[%clk 0:02:34]} 12. Ne5 {[%clk 0:01:42.9]} 12...
Qxd1+ {[%clk 0:02:32.2]} 13. Kxd1 {[%clk 0:01:42.6]} 13... Nxe5 {[%clk
0:02:21.3]} 14. dxe5 {[%clk 0:01:40.9]} 14... O-O-O+ {[%clk 0:02:22]} 15. Kc2
{[%clk 0:01:39.1]} 15... Nd7 {[%clk 0:02:20.5]} 16. f4 {[%clk 0:01:38.1]} 16...
g6 {[%clk 0:02:19.1]} 17. b4 {[%clk 0:01:32.2]} 17... h5 {[%clk 0:02:17.9]} 18.
Be3 {[%clk 0:01:30.2]} 18... Kb8 {[%clk 0:02:14.3]} 19. a4 {[%clk 0:01:26.5]}
19... Bh6 {[%clk 0:02:10]} 20. Rge1 {[%clk 0:01:15.7]} 20... Nb6 {[%clk
0:02:01.9]} 21. Bb3 {[%clk 0:01:08.4]} 21... Nd5 {[%clk 0:02:01.4]} 22. Bxd5
{[%clk 0:01:08.6]} 22... Rxd5 {[%clk 0:02:01.7]} 23. h4 {[%clk 0:01:04.8]} 23...
Rhd8 {[%clk 0:02:01.7]} 24. Rad1 {[%clk 0:01:03.4]} 24... b6 {[%clk 0:01:56.4]}
25. c4 {[%clk 0:00:57.5]} 25... Rxd1 {[%clk 0:01:49]} 26. Rxd1 {[%clk
0:00:56.9]} 26... Rxd1 {[%clk 0:01:49.7]} 27. Kxd1 {[%clk 0:00:57.8]} 27... Bf8
{[%clk 0:01:49]} 28. b5 {[%clk 0:00:57.3]} 28... Be7 {[%clk 0:01:48]} 29. Bf2
{[%clk 0:00:57]} 29... Kb7 {[%clk 0:01:47.7]} 30. Kc2 {[%clk 0:00:56.5]} 30...
Bb4 {[%clk 0:01:28.8]} 31. Kd3 {[%clk 0:00:54.2]} 31... Kc7 {[%clk 0:01:25.2]}
32. Ke4 {[%clk 0:00:50.7]} 32... Bd2 {[%clk 0:01:24.1]} 33. Bg3 {[%clk
0:00:49.9]} 33... Kd7 {[%clk 0:01:19]} 34. h3 {[%clk 0:00:49.9]} 34... Bc3
{[%clk 0:01:03.6]} 35. Bf2 {[%clk 0:00:49.5]} 35... f6 {[%clk 0:00:58.6]} 36. c5
{[%clk 0:00:32.7]} 36... cxb5 {[%clk 0:00:19.4]} 37. axb5 {[%clk 0:00:32.1]}
37... Kc7 {[%clk 0:00:17.9]} 38. cxb6+ {[%clk 0:00:26.1]} 38... axb6 {[%clk
0:00:17.7]} 39. exf6 {[%clk 0:00:25.9]} 39... Bxf6 {[%clk 0:00:17.2]} 40. Bd4
{[%clk 0:00:26.4]} 40... Bxh4 {[%clk 0:00:17]} 41. Ke5 {[%clk 0:00:27]} 41... g5
{[%clk 0:00:08.8]} 42. fxg5 {[%clk 0:00:22.5]} 42... Bxg5 {[%clk 0:00:09]} 43.
Kxe6 {[%clk 0:00:23.1]} 43... Bd2 {[%clk 0:00:05.4]} 44. Bf2 {[%clk 0:00:21.5]}
44... Bf4 {[%clk 0:00:04.9]} 45. Kf5 {[%clk 0:00:19.5]} 45... Bd2 {[%clk
0:00:05.2]} 46. Kg6 {[%clk 0:00:18]} 46... h4 {[%clk 0:00:03.9]} 47. Bxh4 {[%clk
0:00:17.9]} 47... Be3 {[%clk 0:00:03.9]} 48. Bg5 {[%clk 0:00:17]} 48... Bd4
{[%clk 0:00:03.8]} 49. h4 {[%clk 0:00:17]} 49... Kd6 {[%clk 0:00:04.4]} 50. h5
{[%clk 0:00:17.4]} 50... Kc5 {[%clk 0:00:05.1]} 51. Bf6 {[%clk 0:00:17.8]} 51...
Be3 {[%clk 0:00:04.8]} 52. Bg5 {[%clk 0:00:18.4]} 52... Bd4 {[%clk 0:00:04.7]}
53. h6 {[%clk 0:00:19]} 53... Kxb5 {[%clk 0:00:02.3]} 54. Bf6 {[%clk 0:00:19.3]}
54... Bxf6 {[%clk 0:00:02.8]} 55. Kxf6 {[%clk 0:00:19.8]} 55... Kc4 {[%clk
0:00:03.7]} 56. h7 {[%clk 0:00:20.6]} 1-0

[Event "Early-Titled-Tuesday-Blitz-May-07-2024"]
[Site "Chess.com"]
[Date "2024.05.07"]
[Round "4"]
[White "Antosha_Chekhonte"]
[Black "CSB7"]
[Result "1-0"]
[WhiteElo "2573"]
[BlackElo "2767"]
[TimeControl "180+1"]
[EndTime "8:43:24 PDT"]
[Termination "Antosha_Chekhonte won by resignation"]

1. e4 {[%clk 0:03:00.9]} 1... e5 {[%clk 0:02:59.5]} 2. Nf3 {[%clk 0:03:00.6]}
2... Nc6 {[%clk 0:02:58.6]} 3. Nc3 {[%clk 0:02:59.9]} 3... Nf6 {[%clk
0:02:57.1]} 4. d4 {[%clk 0:03:00]} 4... exd4 {[%clk 0:02:53.5]} 5. Nxd4 {[%clk
0:03:00]} 5... Bb4 {[%clk 0:02:49.8]} 6. Nxc6 {[%clk 0:02:59.8]} 6... bxc6
{[%clk 0:02:50.4]} 7. Bd3 {[%clk 0:03:00.1]} 7... O-O {[%clk 0:02:50.1]} 8. O-O
{[%clk 0:03:00.2]} 8... Re8 {[%clk 0:02:49.4]} 9. Re1 {[%clk 0:02:46.8]} 9...
Bd6 {[%clk 0:02:32.6]} 10. h3 {[%clk 0:02:40.8]} 10... a5 {[%clk 0:02:18.5]} 11.
f4 {[%clk 0:02:38.9]} 11... Bc5+ {[%clk 0:02:16.3]} 12. Kh1 {[%clk 0:02:35.2]}
12... d5 {[%clk 0:02:12.5]} 13. e5 {[%clk 0:02:34.2]} 13... Ng4 {[%clk
0:02:10.7]} 14. Qf3 {[%clk 0:01:58]} 14... Qh4 {[%clk 0:01:30.3]} 15. Bd2 {[%clk
0:01:57.3]} 15... Nf2+ {[%clk 0:00:58.5]} 16. Kh2 {[%clk 0:01:56.9]} 16... Ng4+
{[%clk 0:00:58.3]} 17. Kh1 {[%clk 0:01:56.6]} 17... Nf2+ {[%clk 0:00:57.3]} 18.
Kh2 {[%clk 0:01:56.7]} 18... h5 {[%clk 0:00:41.2]} 19. Ne2 {[%clk 0:01:21.1]}
19... Ng4+ {[%clk 0:00:32.2]} 20. Kh1 {[%clk 0:01:21.1]} 20... a4 {[%clk
0:00:15.9]} 21. c3 {[%clk 0:00:56.8]} 21... Nf2+ {[%clk 0:00:14.8]} 22. Kh2
{[%clk 0:00:56.2]} 22... Bg4 {[%clk 0:00:15.5]} 23. Qg3 {[%clk 0:00:35.6]} 23...
Qxg3+ {[%clk 0:00:15.7]} 24. Kxg3 {[%clk 0:00:27.9]} 24... Nxd3 {[%clk
0:00:16.6]} 25. hxg4 {[%clk 0:00:28.3]} 25... Bf2+ {[%clk 0:00:13.3]} 26. Kf3
{[%clk 0:00:25.2]} 26... hxg4+ {[%clk 0:00:13.6]} 27. Kxg4 {[%clk 0:00:23.6]}
27... Bxe1 {[%clk 0:00:13.8]} 28. Bxe1 {[%clk 0:00:24]} 28... Nxe1 {[%clk
0:00:13.7]} 29. Rxe1 {[%clk 0:00:23.6]} 29... c5 {[%clk 0:00:14.2]} 30. Ng3
{[%clk 0:00:18.7]} 30... Rab8 {[%clk 0:00:13.6]} 31. Re2 {[%clk 0:00:18.5]}
31... Rb6 {[%clk 0:00:14.2]} 32. Nf5 {[%clk 0:00:17.6]} 32... g6 {[%clk
0:00:13.1]} 33. Ne3 {[%clk 0:00:16.7]} 33... c6 {[%clk 0:00:12.9]} 34. Kg5
{[%clk 0:00:17]} 34... Kg7 {[%clk 0:00:12.6]} 35. Ng4 {[%clk 0:00:17.1]} 35...
Reb8 {[%clk 0:00:11.4]} 36. e6 {[%clk 0:00:17]} 36... fxe6 {[%clk 0:00:03.5]}
37. Rxe6 {[%clk 0:00:16.8]} 37... Kf7 {[%clk 0:00:04]} 38. Rxg6 {[%clk
0:00:13.9]} 38... Rxb2 {[%clk 0:00:03.7]} 39. Ne5+ {[%clk 0:00:14.3]} 39... Kf8
{[%clk 0:00:02.9]} 40. Nd7+ {[%clk 0:00:10.7]} 40... Ke7 {[%clk 0:00:03.4]} 41.
Rg7+ {[%clk 0:00:09.2]} 41... Kd6 {[%clk 0:00:03.1]} 42. Nxb8 {[%clk 0:00:09.3]}
42... Rxb8 {[%clk 0:00:04]} 43. f5 {[%clk 0:00:09.9]} 43... Rb2 {[%clk 0:00:04]}
44. g4 {[%clk 0:00:08.7]} 44... d4 {[%clk 0:00:03.8]} 45. cxd4 {[%clk
0:00:09.1]} 45... cxd4 {[%clk 0:00:04.7]} 46. f6 {[%clk 0:00:09.4]} 46... Rf2
{[%clk 0:00:02.1]} 47. Rg8 {[%clk 0:00:08.5]} 47... Kc5 {[%clk 0:00:01.6]} 48.
Rd8 {[%clk 0:00:08.3]} 48... Kc4 {[%clk 0:00:01.6]} 49. Kg6 {[%clk 0:00:08.7]}
49... d3 {[%clk 0:00:01.9]} 50. f7 {[%clk 0:00:08.8]} 50... Kc3 {[%clk
0:00:02.1]} 51. Kg7 {[%clk 0:00:08.3]} 51... d2 {[%clk 0:00:01.3]} 52. f8=Q
{[%clk 0:00:08.3]} 52... Rxf8 {[%clk 0:00:01.2]} 53. Kxf8 {[%clk 0:00:09.2]}
53... c5 {[%clk 0:00:01.7]} 54. g5 {[%clk 0:00:09.7]} 54... c4 {[%clk
0:00:02.3]} 55. g6 {[%clk 0:00:10.3]} 55... Kb2 {[%clk 0:00:03.2]} 56. Rxd2+
{[%clk 0:00:09.7]} 1-0